Cogmind - Beta 13 @@@ ROGUE MODE // 2024.04.10 @ 20:35:19 Player: Allan Result: Self-destructed Performance ------------- Evolutions (1) 500 Regions Visited (2) 400 Robots Destroyed (30) 150 Value Destroyed (861) 861 Prototype IDs (2) 40 Alien Tech Used (0) 0 Bonus (0) 0 TOTAL SCORE: 1951 Bonus ------- None Cogmind --------- Core Integrity 400/400 Matter 290/300 Energy 37/250 System Corruption 0% Temperature Cool (0) Movement Walking (190) Ox1 Location -9/Materials Parts ------- > --- POWER (1) -------- Ion Engine > --- PROPULSION (2) --- Aluminum Leg Aluminum Leg > --- UTILITY (4) ------ Heat Sink Medium Storage Unit Sensor Array Signal Interpreter > --- WEAPON (2) ------- Heavy EM Pulse Gun Light EM Pulse Cannon > --- INVENTORY (10) --- Improved Flight Unit Improved Flight Unit Improved Flight Unit Improved Flight Unit Signal Interpreter Heavy EM Pulse Gun Heavy EM Pulse Gun Grenade Launcher Peak State ------------ > --- POWER ------------ Ion Engine > --- PROPULSION ------- Aluminum Leg Aluminum Leg > --- UTILITY ---------- Heat Sink Medium Storage Unit Sensor Array Signal Interpreter > --- WEAPON ----------- Heavy EM Pulse Gun Heavy EM Pulse Gun > --- INVENTORY -------- Ion Engine Improved Flight Unit Improved Flight Unit Improved Flight Unit Improved Flight Unit Improved EM Shotgun Improved EM Shotgun Grenade Launcher [Rating: 13] Favorites ----------- Power Ion Engine Engine Ion Engine Propulsion Aluminum Leg Leg Aluminum Leg Wheel Compact Wheel Utility Signal Interpreter Device Heat Sink Storage Medium Storage Unit Processor Signal Interpreter Weapon Heavy EM Pulse Gun Energy Gun Heavy EM Pulse Gun Energy Cannon Light EM Pulse Cannon Ballistic Gun Assault Rifle Launcher Grenade Launcher Build | -11 -10 -9 ------- Run | Yrd Mat Mat Slots Evolved 2 | . . 2 Power . | . . . Propulsion . | . . . Utility 2 | . . 2 Weapon . | . . . Parts Attached 23 | 6 13 4 Power 3 | 1 1 1 Engine 3 | 1 1 1 Core . | . . . Reactor . | . . . Propulsion 5 | 2 3 . Treads . | . . . Leg 2 | . 2 . Wheel 3 | 2 1 . Hover . | . . . Flight . | . . . Utility 5 | 1 2 2 Device 2 | . . 2 Storage 2 | 1 1 . Processor 1 | . 1 . Hackware . | . . . Protection . | . . . Artifact . | . . . Weapon 10 | 2 7 1 Energy Gun 6 | 1 5 . Energy Cannon 1 | . . 1 Ballistic Gun 2 | 1 1 . Ballistic Cannon . | . . . Launcher 1 | . 1 . Special Weapon . | . . . Impact Weapon . | . . . Slashing Weapon . | . . . Piercing Weapon . | . . . Special Melee Weapon . | . . . Unidentified Prototypes . | . . . Parts Lost 5 | . 4 1 Power 1 | . . 1 Propulsion 2 | . 2 . Utility . | . . . Weapon 2 | . 2 . Highest Loss Streak 1 | . 1 1 To Critical Strikes . | . . . Average Slot Usage (%) 96 | . 95 100 Engine 12 | . 14 11 Leg 17 | . 14 22 Wheel 8 | . 13 . Device 8 | . . 22 Storage 12 | . 14 11 Processor 10 | . 9 11 Energy Gun 21 | . 26 12 Energy Cannon 3 | . . 9 Ballistic Gun 1 | . 1 . Naked Turns . | . . . Heaviest Build 24 | 12 21 24 Greatest Support 32 | 32 32 20 Greatest Overweight (x) 1 | . 1 1 Average Overweight (x) . | . . . Largest Inventory Capacity 10 | 8 10 10 Average Capacity 9 | 6 9 10 Most Carried 10 | 4 10 10 Average Carried 7 | 2 6 9 Final Capacity 10 | 8 10 10 Final Carried 10 | 4 10 8 Class Distribution -------------------- 63% | Mutant 36% | Scavenger-Mutant Dominant Class ---------------- Mutant | -10/Materials Scavenger-Mutant | -9/Materials Resources | -11 -10 -9 ----------- Run | Yrd Mat Mat Matter Collected 483 | 241 212 30 Remotely . | . . . Salvage Created 1303 | . 864 439 Parts 71 | . 43 28 Haulers Intercepted . | . . . Recyclers Shooed 1 | . 1 . Parts Field Recycled . | . . . Retrieved Matter . | . . . Parts Self-Destructed . | . . . Prevented . | . . . Kills | -11 -10 -9 ------- Run | Yrd Mat Mat Combat Hostiles Destroyed 23 | . 17 6 Guns 16 | . 14 2 Cannons 3 | . . 3 AOE 3 | . 3 . Classes Destroyed 6 | . 4 2 Recycler 2 | . 1 1 Operator 1 | . . 1 Watcher 4 | . 3 1 Swarmer 3 | . 3 . Grunt 17 | . 14 3 Sentry 3 | . . 3 Best Kill Streak 6 | . 6 3 Combat Bots Only 6 | . 6 2 Max Kills in Single Turn 2 | . 2 2 Gunslinging . | . . . Exploded 2 | . 2 . Melee . | . . . Uniques/NPCs Destroyed . | . . . Combat | -11 -10 -9 -------- Run | Yrd Mat Mat Hostile Shots Fired 79 | . 55 24 Missed 30 | . 17 13 Damage Taken 664 | . 520 144 Core 162 | . 162 . Absorbed by Shields . | . . . Core Remaining (%) 67 | 100 35 . Volleys Fired 70 | . 53 17 Largest 2 | . 2 2 Hottest 101 | . 90 101 Shots Fired 137 | . 103 34 Gun 117 | . 100 17 Cannon 17 | . . 17 Launcher 3 | . 3 . Special . | . . . Kinetic 16 | . 16 . Thermal . | . . . Explosive 3 | . 3 . Electromagnetic 118 | . 84 34 Robot Hit Streak 9 | . 7 9 Robot Miss Streak 4 | . 4 2 Penetration Max . | . . . Secondary Targets 2 | . 2 . Max Gunslinging Chain 1 | . 1 . Shots Hit Robots 82 | . 59 23 Core Hits 35 | . 25 10 Critical Kills . | . . . Critical Parts Destroyed . | . . . Critical Strikes 3 | . 2 1 Corrupt 3 | . 2 1 Melee Attacks . | . . . Impact . | . . . Slashing . | . . . Piercing . | . . . Sneak Attacks . | . . . Combat Hostiles . | . . . Follow-up Attacks . | . . . Damage Inflicted 1665 | . 1212 453 Guns 1148 | . 972 176 Cannons 276 | . . 276 Explosions 240 | . 240 . Melee . | . . . Ramming 1 | . . 1 Kinetic 153 | . 153 . Thermal 164 | . 164 . Explosive 76 | . 76 . Electromagnetic 1271 | . 819 452 Impact . | . . . Slashing . | . . . Piercing . | . . . Highest Corruption . | . . . Average Corruption . | . . . Corruption Purged . | . . . Corruption Blocked . | . . . Overload Shots . | . . . Overflow Damage 29 | . 29 . Projectiles . | . . . Explosions 29 | . 29 . Melee . | . . . Knockbacks . | . . . Impact . | . . . Kinetic . | . . . Secondary . | . . . Self-Inflicted Damage 76 | . 76 . Shots 3 | . 3 . Rammed . | . . . Targets Rammed 1 | . . 1 Kicked 1 | . . 1 Crushed . | . . . Highest Temperature 228 | . 228 25 Average Temperature 58 | . 63 12 Received Heat Transfer 270 | . 216 54 Siege Activations . | . . . Robots Corrupted 1 | . . 1 Combat Hostiles 1 | . . 1 Parts Fried 6 | . 2 4 Impact Corruptions . | . . . Robots Melted . | . . . Combat Hostiles . | . . . Parts Melted . | . . . Heat Transferred 200 | . 200 . Parts Sabotaged . | . . . Parts Stolen . | . . . Parts Stripped . | . . . Power Chain Reactions 2 | . 2 . Alert | -11 -10 -9 ------- Run | Yrd Mat Mat Peak Influence 344 | . 344 145 Initial 51 | . . 51 Average 142 | . 193 64 Maximum Alert Level 1 | . 1 . Low Security (%) 60 | 100 35 100 Level 1 39 | . 64 . Level 2 . | . . . Level 3 . | . . . Level 4 . | . . . Level 5 . | . . . High Security . | . . . Max Security . | . . . Squads Dispatched 5 | . 4 1 Investigation 2 | . 2 . Extermination . | . . . Reinforcement 3 | . 2 1 Assault . | . . . Garrison . | . . . Intercept . | . . . Searches Triggered . | . . . Construction Impeded . | . . . Haulers Reinforced . | . . . Active Scanning Responses . | . . . Cargo Convoy Interrupts . | . . . Stealth | -11 -10 -9 --------- Run | Yrd Mat Mat Distress Signals 4 | . 1 3 Communications Jammed . | . . . Distress Signals . | . . . Times Spotted 34 | . 26 8 Peak Tracking Total 4 | . 4 3 Tactical Retreats 1 | . . 1 Traps | -11 -10 -9 ------- Run | Yrd Mat Mat Traps Triggered 1 | . 1 . Indirectly . | . . . Trap Hack Attempts . | . . . Triggered . | . . . Disarmed . | . . . Reprogrammed . | . . . Reused . | . . . Traps Extracted . | . . . Installed . | . . . Triggered . | . . . Machines | -11 -10 -9 ---------- Run | Yrd Mat Mat Machines Disabled . | . . . Max in Single Turn . | . . . Machines Repaired . | . . . Machines Dismantled . | . . . Machines Sabotaged . | . . . Overloaded Fab Kills . | . . . Hacking | -11 -10 -9 --------- Run | Yrd Mat Mat Machines Accessed 9 | . 4 5 Terminals 7 | . 3 4 Fabricators . | . . . Repair Stations . | . . . Recycling Units 1 | . 1 . Scanalyzers 1 | . . 1 Garrison Access . | . . . Total Hacks 22 | . 10 12 Successful 9 | . 3 6 Failed 13 | . 7 6 Catastrophic 2 | . 1 1 Database Lockouts . | . . . Manual 13 | . 8 5 Terminals 17 | . 8 9 Fabricators . | . . . Repair Stations . | . . . Recycling Units 2 | . 2 . Scanalyzers 3 | . . 3 Garrison Access . | . . . Terminal Hacks 4 | . 1 3 Scanalyzer Index 1 | . . 1 Hauler Manifests 2 | . 1 1 Registered Components 1 | . . 1 Fabricator Hacks . | . . . Repair Station Hacks . | . . . Recycling Unit Hacks 2 | . 2 . Report Inventory 1 | . 1 . Retrieve Components 1 | . 1 . Scanalyzer 3 | . . 3 Insert Component 2 | . . 2 Analyze 1 | . . 1 Garrison Access Hacks . | . . . Unauthorized Hacks . | . . . Terminals . | . . . Fabricators . | . . . Repair Stations . | . . . Recycling Units . | . . . Scanalyzers . | . . . Garrison Access . | . . . Data Cores Recovered . | . . . Used . | . . . Hacking Detections 6 | . 4 2 Full Trace Events 2 | . 1 1 Feedback Events . | . . . Feedback Blocked . | . . . Robot Schematics Acquired . | . . . Robots Built . | . . . Authchips . | . . . Time . | . . . Total Robot Build Rating . | . . . Part Schematics Acquired 1 | . . 1 Parts Built . | . . . Authchips . | . . . Time . | . . . Total Part Build Rating . | . . . Parts Repaired . | . . . Time . | . . . Parts Recycled . | . . . Recycled Matter . | . . . Retrieved Matter . | . . . Retrieved Components 1 | . 1 . Parts Scanalyzed 1 | . . 1 Part Schematics Acquired 1 | . . 1 Parts Damaged . | . . . Bothacking | -11 -10 -9 ------------ Run | Yrd Mat Mat Used RIF Installer . | . . . Robots Hacked . | . . . Non-combat . | . . . Combat . | . . . Robot Hacks Applied . | . . . Relay Couplers Released . | . . . Fabnet Peak Effective % . | . . . Robots Rewired . | . . . Allies Hacked . | . . . Hacks Repelled . | . . . Allies | -11 -10 -9 -------- Run | Yrd Mat Mat Total Allies . | . . . Largest Group . | . . . Highest-Rated Group . | . . . Highest-Rated Ally . | . . . Total Orders . | . . . Ally Attacks . | . . . Total Damage . | . . . Kills . | . . . Allies Corrupted . | . . . Allies Melted . | . . . Intel | -11 -10 -9 ------- Run | Yrd Mat Mat Robot Analysis Total . | . . . Derelict Logs Recovered . | . . . Drone Launches . | . . . Drone Recoveries . | . . . Exploration | -11 -10 -9 ------------- Run | Yrd Mat Mat Turns Passed 2743 | 62 1688 993 Spaces Moved 1600 | 47 1083 470 Core 1 | 1 . . Treads . | . . . Legs 920 | . 450 470 Wheels 679 | 46 633 . Hover . | . . . Flight . | . . . Fastest Speed 50 | 50 90 120 Average Speed 151 | 98 136 189 Slowest Speed 190 | 100 190 190 Overloaded Moves . | . . . Propulsion Burnouts . | . . . Robots Hopped . | . . . Cave-ins Triggered . | . . . Exploration Rate (%) 42 | 3 98 25 Regions Visited 2 Branch Regions . Pre-discovered Areas . | . . . Known Exits Taken 1 | . 1 . Unknown Exits Taken 1 | 1 . . Scrap Searched . | . . . Spaces Dug . | . . . Terrain Destroyed 34 | . 34 . Melee . | . . . Projectile . | . . . AOE 34 | . 34 . Terrain Rammed . | . . . Walls Destroyed . | . . . Machines Disabled . | . . . Actions | -11 -10 -9 --------- Run | Yrd Mat Mat Total 1787 | 62 1188 537 Wait 47 | . 9 38 Move 1598 | 46 1082 470 Hop . | . . . Pick Up 35 | 10 21 4 Fast Attach . | . . . Attach 17 | 6 7 4 Detach . | . . . Swap 6 | . 6 . Drop 13 | . 10 3 Fire 70 | . 53 17 Melee . | . . . Ram . | . . . Kick 1 | . . 1 Crush . | . . . Escape Stasis . | . . . Rewire . | . . . Trap . | . . . Miscellaneous . | . . . Route ------- -11/Scrapyard -10/Materials (discovered 5 exits: *Mat x3 / [*Min x2]) -9/Materials History --------- Turn | Location | Event 33 | -11/Scrapyard | Discovered new exit (range 16) 63 | -11/Scrapyard | Entered Materials 153 | -10/Materials | Discovered new exit (range 10) 322 | -10/Materials | Build established: Mutant 362 | -10/Materials | Discovered new exit (range 16) 737 | -10/Materials | Discovered new exit (range 16) 850 | -10/Materials | Discovered new exit (range 13) 862 | -10/Materials | Core integrity fell below 50% 920 | -10/Materials | Identified exit to Materials 1046 | -10/Materials | Discovered new exit (range 16) 1751 | -10/Materials | Entered another Materials area 1751 | -9/Materials | Evolved 2 slots: Utility x2 2051 | -9/Materials | Build established: Scavenger-Mutant 2744 | -9/Materials | Self-destructed Last Messages --------------- Connecting with Terminal... >>Inventory(Components) Retrieving component inventory records... Found 3 registered component stockpiles: ICPDNTDTCO: Rocket Launcher JPYZH950VH: Seismic Detector 18CBY2J1DN: Shotgun Downloaded coordinate data. O-16 Technician sends out distress signal. O-16 Technician: "IFF HANDSHAKE FAILED. SECURING TERMINAL." G-34 Mercenary destroyed. ALERT: Hostiles spotted, dispatching reinforcements to Terminal M009. G-34 Mercenary system terminally corrupted. Heat Sink fried. Ion Engine fried. Ion Engine destroyed. G-34 Mercenary destroyed. K-01 Serf collects debris. Map ----- +----------------------------------------------------+ | ?????????????????????????????????????????????????? | | ?????????????????????????????????????????????????? | | ?????????????????????????????????????????????????? | | ?????????????????????????????????????????????????? | | ?????????????????????????????????????????????????? | | ?????????????????????????????????????????????????? | | ?????????????????????????????????????????????????? | | ?????????????????????????????????????????????????? | | ?????????????????????????????????????????????????? | | ?????????????????????????????????????????????????? | | ?????????????????????????????????????????????????? | | ?????????????????????????????????????????????????? | | ?????????????????????????????????????????????????? | | ?????????????????????????????????????????????????? | | ?????????????????????????????????????????????????? | | ?????????????????????????????????????????????????? | | ????????????????????????##########???????########? | | ????????????????????????# #???????#! #? | | ????????????????????????# #???????# #? | | ????????????????????????# +??X????# """ #? | | ????????????????????????# #???????# """ #? | | ????????????????????????# #???????# """ #? | | ????????????????????????# ## ?????# [#? | | ???????????????x????????#[!*k ## #######+###? | | ???????????????x????????#==% ## ## | | ????????????????????????#@% ## | | ???????????????x????????###+##+#### | | ????????????????x?????????# #??## ############# | | ??????????????????????????# #???#???########??# | | ??????????????????????????# #???????# #??# | | ????????????????????????### #???????# #### | | ?????????????????????????%+[ #???????# + | | ??????????????????????????#* #???????# #### | | ??????????????????????????# #???????# #??# | | ??????????????????????????# #???????# #??# | | ??????????????????????????# ##+#####??####+####??# | | ??????????????????????????# ## T #??# #??# | | ??????????????????x???????# ## #??# #??# | | ??????????????????????????# ## #??# #??# | | ?????????????????????????## ## """ #??# #####??# | | ?????????????????????????# # """ #??# ???????# | | ?????????????????????????# T + """ #??# ???????# | | ?????????????????????????# # #??# ???????# | | ?????????????????????????## ########??# ???????# | | ??????????????????????????# #?????????# ???????# | | ??????????????????????????# #?????????# ???????# | | ??????????????????????????# #?????????# ???????# | | ??????????????????????????# #?????????# ????????# | | ??????????????????????????#%#?????????# ???????# | | ??????????????????????????# #?????????+ ??????# | +----------------------------------------------------+ Best States ------------- Heat Dissipation 38 Energy Generation 10 Energy Capacity 250 Matter Stores 300 Matter Capacity 300 Sight Range 16 Robot Scan Range 14 Terrain Scan Density 10 Evasion (%) 44 Item Schematics ----------------- Imp. Flight Unit | -9/Materials | Scanalyzed Robot Schematics ------------------ None Fabricated ------------ Nothing Alien Tech Used ----------------- None Achievements -------------- None Challenges ------------ None Game ------ Seed ResetMolecularHumpback Manual? 0 Play Time 00:27:07 Cumulative 6.2 hours Start 2024.04.09 @ 19:13:13 End 2024.04.10 @ 20:35:19 Sessions 3 Manual Loads 0 Difficulty Rogue Special Mode None Game No. 8 Rogue 8 Adventurer 0 Explorer 0 Win Type - Total 0 Types 0/0/0/0/0/0/0/0/0 Lore% 2 Gallery% 6 Achievement% 8 Wizard Run 0 Options --------- Layout 1 ASCII 0 Keyboard 0 Movement Arrows Keybinds 0 Fullscreen 1 Font 16/SmallcapsGlow Map View 55x38 Zoom Use 0% Tactical HUD 0 Map Filters NONE Filters NONE Steam 1 RUN: 9b8af712-d3bb-4856-8e09-679e6ef7bdbe